[Event "Chinese League Division-A 2024"]
[Site "Fuling Chongqing"]
[Date "2024.07.01"]
[Round "5.21"]
[White "Bu, Xiangzhi"]
[Black "Jiang, Haochen"]
[Result "1/2-1/2"]
[ECO "D02"]
[WhiteElo "2689"]
[BlackElo "2290"]
[Annotator "TA"]
[PlyCount "105"]
[EventDate "2024.06.28"]
[EventType "team-tourn"]
[EventCountry "CHN"]
[SourceTitle "playchess.com"]
[Source "ChessBase"]
[SourceQuality "1"]
[TimeControl "40/5400+30:1800+30"]

{[%evp 15,105,33,28,40,43,36,32,34,33,42,31,32,39,29,40,38,30,31,26,36,20,29,27,35,24,14,33,22,33,16,22,13,18,18,21,19,20,22,16,20,18,18,18,18,18,19,35,33,58,57,53,37,37,37,53,54,93,93,93,93,93,93,93,93,93,97,220,220,220,220,220,20,20,20,20,20,20,20,20,0,0,0,0,0,20,20,20,20,20,20,20,0]} 1. Nf3 {[%emt 0:00:08]} Nf6 {[%emt 0:00:09]} 2. g3 {[%emt 0:00:19]} d5 {[%emt 0:01:09]} 3. Bg2 {[%emt 0:00:07]} c5 {[%emt 0:00:25]} 4. O-O {[%emt 0:00:17]} Nc6 {[%emt 0:00:40]} 5. d4 {[%emt 0:00:18]} cxd4 {[%emt 0:00:35]} 6. Nxd4 {[%emt 0:00:05]} e5 {[%emt 0:00:05]} 7. Nxc6 {[%emt 0:00:42]} bxc6 {[%emt 0:00:03]} 8. c4 {[%emt 0:00:39]} Be6 {[%emt 0:00:30]} 9. Nc3 {[%emt 0:12:46]} Qd7 {[%emt 0:00:14]} 10. Qa4 {[%emt 0:05:00]} Rc8 {[%emt 0:00:20]} 11. cxd5 {[%emt 0:01:51] White is slightly better.} cxd5 {[%emt 0:00:07]} 12. Qxd7+ {[%emt 0:00:03]} Kxd7 {[%emt 0:00:10]} 13. Rd1 {[%emt 0:00:30][%cal Oc1g5]} Bc5 {[%emt 0:00:21]} 14. Nxd5 {[%emt 0:09:45]} (14. Bxd5 Nxd5 15. e4 (15. Nxd5 Bxd5 16. Rxd5+ Ke6 $14) 15... Bd4 16. exd5 Bg4 $15) 14... Nxd5 {[%emt 0:00:36]} 15. Bxd5 {[%emt 0:00:56]} Bxd5 {[%emt 0:00:15]} 16. Rxd5+ {[%emt 0:00:10]} Ke6 {[%emt 0:00:08]} 17. Rd2 {[%emt 0:02:17]} Rhd8 {[%emt 0:31:49]} 18. Kf1 {[%emt 0:10:52]} Bb6 {[%emt 0:02:44][%cal Oc8c1]} 19. Rxd8 {[%emt 0:02:22]} Rxd8 {[%emt 0:00:29]} 20. Be3 {[%emt 0:01:41]} Bxe3 {[%emt 0:22:22]} 21. fxe3 $11 {[%emt 0:00:11][%mdl 4096] Endgame. KR-KR} Rc8 {[%emt 0:01:24] Repels Rc1} 22. Ke1 {[%emt 0:04:11]} Kf5 {[%emt 0:01:54]} 23. Rd1 {[%emt 0:03:22] Rd7 is the strong threat.} Ke4 $1 {[%emt 0:02:44]} 24. Rd3 {[%emt 0:01:01]} Rc1+ {[%emt 0:01:48]} 25. Kf2 {[%emt 0:05:16]} Rh1 {[%emt 0:03:16]} 26. h4 {[%emt 0:00:17]} Rh2+ {[%emt 0:01:47]} 27. Kf1 {[%emt 0:00:12]} Rh1+ $1 {[%emt 0:02:04]} 28. Kg2 {[%emt 0:00:24]} Rb1 {[%emt 0:00:05]} 29. Rb3 {[%emt 0:00:17]} h5 {[%emt 0:04:42]} 30. Kf2 {[%emt 0:02:43]} a5 {[%emt 0:00:23] Prevents Rb4+} 31. Rb7 {[%emt 0:19:33]} f6 {[%emt 0:01:09]} 32. Rxg7 {[%emt 0:02:08] Ra7 would now be deadly.} Rxb2 {[%emt 0:01:11]} 33. a4 {[%emt 0:05:24]} Rb4 {[%emt 0:10:49]} 34. Rh7 {[%emt 0:04:03]} Rxa4 {[%emt 0:02:38]} 35. Rxh5 {[%emt 0:00:06]} Ra1 {[%emt 0:00:47]} 36. Rh6 {[%emt 0:00:17]} Kf5 {[%emt 0:02:35] [#]} 37. e4+ $1 {[%emt 0:00:37]} Ke6 {[%emt 0:00:09]} 38. Rh7 $1 {[%emt 0:00:49]} a4 {[%emt 0:03:24]} 39. Ra7 {[%emt 0:00:25]} a3 {[%emt 0:02:03] [#]} 40. Kg2 $1 {[%emt 0:00:00] And now h5 would win. White is more active.} Ra2 {[%emt 0:00:00]} (40... Re1 $16) 41. Kf3 $18 {[%emt 0:03:30]} Ra1 {[%emt 0:05:41]} 42. Kf2 {[%emt 0:04:54]} Kd6 {[%emt 0:03:47] [#]} 43. Ra5 {[%emt 0:16:56]} ({Only move:} 43. g4 $1 $18) 43... a2 $11 {[%emt 0:11:26] The position is equal.} 44. Kg2 {[%emt 0:13:45] Threatens to win with Ra7.} Ke7 {[%emt 0:00:40]} 45. Ra7+ {[%emt 0:01:05]} Kf8 {[%emt 0:00:09]} 46. h5 {[%emt 0:00:33]} Kg8 {[%emt 0:00:14]} 47. Ra6 {[%emt 0:00:32]} Kg7 {[%emt 0:00:25]} 48. g4 {[%emt 0:00:16]} Kh7 {[%emt 0:00:36]} 49. Ra7+ {[%emt 0:00:11]} (49. Rxf6 $2 {loses.} Re1 (49... Rg1+ $2 50. Kxg1 a1=Q+ 51. Kf2 $19) 50. Ra6 a1=Q (50... a1=B 51. Kf2 $11) (50... a1=R $2 51. Re6 $19) 51. Rxa1 Rxa1 $19) 49... Kg8 {[%emt 0:00:59]} 50. h6 {[%emt 0:00:47]} Kh8 {[%emt 0:00:05]} 51. h7 {[%emt 0:00:44]} Rc1 {[%emt 0:00:28]} 52. Rxa2 {[%emt 0:00:06] Strongly threatening Ra6.} Kxh7 {[%emt 0:00:03]} 53. Kf3 {[%emt 0:00:22] Weighted Error Value: White=0.09 (flawless) /Black=0.06 (flawless) .  Missed win:     	White=1     	---        Mistake:       	---       	Black=1      Inaccurate:     	---       	Black=1      OK:         	White=23    	Black=17     Best:        	White=3     	Black=6      Strong:       	White=2     	Black=2      Brilliant:      	White=1     	---} 1/2-1/2

[Event "Chinese League Division-A 2024"]
[Site "Fuling Chongqing"]
[Date "2024.07.01"]
[Round "5.22"]
[White "Wang, Zihang"]
[Black "Liu, Yan"]
[Result "0-1"]
[ECO "B51"]
[WhiteElo "2028"]
[BlackElo "2573"]
[Annotator "TA"]
[PlyCount "106"]
[EventDate "2024.06.28"]
[EventType "team-tourn"]
[EventCountry "CHN"]
[SourceTitle "playchess.com"]
[Source "ChessBase"]
[SourceQuality "1"]
[TimeControl "40/5400+30:1800+30"]

{[%evp 13,106,0,19,2,24,20,32,27,26,13,25,31,23,27,29,29,19,11,31,40,33,31,36,25,40,26,51,40,54,31,22,10,30,0,19,16,30,0,0,0,2,-1,0,0,0,0,0,0,-3,-181,-163,-157,-175,-175,-177,-182,-160,-171,-181,-227,-199,-393,-394,-394,-395,-395,-395,-387,-387,-805,-792,-1200,-239,-709,-614,-701,-683,-749,-741,-1704,-952,-5069,-4706,-10748,-8933,-29949,-7243,-29936,-9502,-29962,-29965,-29971,-29972,-29967,-29971]} 1. e4 {[%emt 0:00:03]} c5 {[%emt 0:00:43]} 2. Nf3 {[%emt 0:00:07]} d6 {[%emt 0:00:08]} 3. Bb5+ {[%emt 0:00:09]} Nd7 {[%emt 0:00:34]} 4. d4 {[%emt 0:00:19]} cxd4 {[%emt 0:00:19]} 5. Qxd4 {[%emt 0:00:45]} a6 {[%emt 0:00:57]} 6. Bxd7+ {[%emt 0:00:26]} Bxd7 {[%emt 0:00:35]} 7. Nc3 {[%emt 0:00:58]} e5 {[%emt 0:04:41]} 8. Qd3 {[%emt 0:00:13]} h6 {[%emt 0:08:41]} 9. Nd2 {[%emt 0:01:07]} Rc8 {[%emt 0:05:16]} 10. Nc4 {[%emt 0:01:36] White is slightly better.} Be6 {[%emt 0:02:27]} 11. Ne3 {[%emt 0:00:17]} Qc7 {[%emt 0:07:39]} 12. O-O {[%emt 0:12:00]} Nf6 {[%emt 0:06:05]} 13. a4 {[%emt 0:02:20]} Be7 {[%emt 0:03:14]} 14. Rd1 {[%emt 0:00:51]} O-O {[%emt 0:02:15]} 15. a5 {[%emt 0:01:24]} Rfe8 {[%emt 0:07:44]} 16. Bd2 {[%emt 0:08:44]} Bc4 {[%emt 0:10:40]} 17. Nxc4 {[%emt 0:00:39]} Qxc4 {[%emt 0:00:04]} 18. Be1 {[%emt 0:31:04]} Qxd3 {[%emt 0:07:12]} 19. Rxd3 {[%emt 0:08:41]} Nd7 {[%emt 0:01:50]} 20. f3 {[%emt 0:03:03]} g6 {[%emt 0:06:40]} 21. Bf2 {[%emt 0:06:47]} f5 {[%emt 0:12:31]} 22. Rd2 {[%emt 0:04:19]} Nf6 {[%emt 0:02:45]} 23. Ra4 {[%emt 0:06:45]} fxe4 {[%emt 0:04:26]} 24. fxe4 {[%emt 0:02:30]} Kf7 {[%emt 0:00:35]} 25. h3 {[%emt 0:02:15]} Rc7 {[%emt 0:01:24]} 26. Bb6 {[%emt 0:02:23]} Rc6 {[%emt 0:00:08]} 27. Rf2 {[%emt 0:02:08]} Rec8 {[%emt 0:02:20]} 28. Be3 {[%emt 0:01:19]} Rc4 {[%emt 0:01:01]} 29. Rxc4 {[%emt 0:01:04]} Rxc4 {[%emt 0:00:03]} 30. Bxh6 {[%emt 0:00:09]} Ke6 {[%emt 0:00:08]} 31. Re2 $2 {[%emt 0:00:50] [#] This costs White the game.} (31. Rf3 $11 {and White has nothing to worry.}) 31... Bd8 $1 $19 {[%emt 0:00:24]} 32. Bg5 {[%emt 0:00:42]} Bxa5 {[%emt 0:00:16]} 33. Bxf6 {[%emt 0:00:23]} Bxc3 $17 {[%emt 0:00:10][%mdl 4096] Endgame. KRB-KRB} ({Worse is} 33... Kxf6 34. Nd5+ Ke6 35. Kf2 $11) 34. b3 {[%emt 0:00:38]} Rc8 {[%emt 0:01:57]} 35. Bg5 {[%emt 0:00:20]} b5 {[%emt 0:00:36]} 36. Bc1 {[%emt 0:00:39]} (36. Kf1 {was necessary.}) 36... a5 $19 {[%emt 0:00:25]} 37. Ba3 $2 {[%emt 0:00:28]} (37. Kf2) 37... Bd4+ {[%emt 0:00:36]} 38. Kh2 {[%emt 0:00:09]} b4 {[%emt 0:00:49]} 39. Bc1 {[%emt 0:00:17] [#]} a4 $1 {[%emt 0:00:09][%mdl 512]} 40. bxa4 {[%emt 0:00:00]} b3 {[%emt 0:00:00]} 41. c3 $2 {[%emt 0:05:57]} (41. h4) 41... Rxc3 {[%emt 0:04:53]} 42. Bb2 {[%emt 0:04:23]} Re3 $2 {[%emt 0:01:38]} (42... Rc2 43. Rxc2 bxc2) 43. Rd2 {[%emt 0:03:33]} (43. Rxe3 Bxe3 44. Kg3) 43... Rxe4 {[%emt 0:00:20] Hoping for ...Bxb2.} 44. a5 {[%emt 0:00:36]} Kd7 {[%emt 0:07:46] Threatens to win with ...Bxb2.} 45. g4 {[%emt 0:03:22]} Kc6 {[%emt 0:01:38]} 46. Kg3 {[%emt 0:00:24]} Bxb2 {[%emt 0:06:27]} 47. Rxb2 {[%emt 0:00:06] KR-KR} Rb4 {[%emt 0:00:29]} 48. h4 {[%emt 0:00:20]} Kb5 {[%emt 0:00:16]} 49. h5 {[%emt 0:00:08]} gxh5 {[%emt 0:00:04]} 50. gxh5 {[%emt 0:00:04]} Kxa5 {[%emt 0:01:15] ( -> ...Ka4)} 51. h6 {[%emt 0:00:15]} Rb8 {[%emt 0:02:05] Black mates.} 52. Kg4 {[%emt 0:00:17]} Ka4 {[%emt 0:00:25]} 53. Kg5 {[%emt 0:00:11]} Ka3 {[%emt 0:00:08] Weighted Error Value: White=0.97/Black=0.13 (very precise) .  Loses game:     	White=1     	---        Mistake:       	White=3     	---        Inaccurate:     	White=3     	---        OK:         	White=15    	Black=13     Best:        	White=2     	Black=2      Strong:       	---       	Black=1      Brilliant:      	---       	Black=1} 0-1

[Event "Chinese League Division-A 2024"]
[Site "Fuling Chongqing"]
[Date "2024.07.01"]
[Round "5.23"]
[White "Wang, Chen"]
[Black "Xu, Pengmo"]
[Result "1-0"]
[ECO "D11"]
[WhiteElo "2490"]
[BlackElo "1834"]
[Annotator "TA"]
[PlyCount "73"]
[EventDate "2024.06.28"]
[EventType "team-tourn"]
[EventCountry "CHN"]
[SourceTitle "playchess.com"]
[Source "ChessBase"]
[SourceQuality "1"]
[TimeControl "40/5400+30:1800+30"]

{[%evp 16,73,0,0,7,0,0,0,-1,-8,-9,-17,0,0,0,0,0,0,0,-25,-10,-18,0,-16,-12,-14,11,0,113,122,100,68,86,-7,-9,-5,-16,-10,-2,-8,0,0,5,0,0,0,0,0,62,52,90,83,96,65,1851,1597,4956,4956,4606,4021]} 1. d4 {[%emt 0:00:11]} d5 {[%emt 0:00:08]} 2. g3 {[%emt 0:04:40]} Nf6 {[%emt 0:01:47]} 3. Bg2 {[%emt 0:00:06]} c6 {[%emt 0:02:24]} 4. Nf3 {[%emt 0:02:13]} Bf5 {[%emt 0:02:40]} 5. O-O {[%emt 0:04:12]} h6 {[%emt 0:01:47]} 6. c4 {[%emt 0:02:54][%cal Bc2c4,Bc4c5][%mdl 32]} e6 {[%emt 0:02:44]} 7. Nc3 {[%emt 0:00:39]} Be7 {[%emt 0:02:28]} 8. Qb3 {[%emt 0:05:04]} Qb6 {[%emt 0:03:44]} 9. c5 {[%emt 0:13:48]} Qa6 {[%emt 0:06:29]} 10. Nd2 {[%emt 0:13:34]} Nbd7 {[%emt 0:10:52]} 11. Re1 {[%emt 0:02:23]} b6 {[%emt 0:02:22] The position is equal.} 12. e4 {[%emt 0:04:15]} dxe4 {[%emt 0:03:24]} 13. cxb6 {[%emt 0:00:10]} axb6 {[%emt 0:01:04]} 14. Ndxe4 {[%emt 0:00:35]} Nxe4 {[%emt 0:03:17]} 15. Nxe4 {[%emt 0:00:39]} O-O {[%emt 0:04:52]} 16. Bf4 {[%emt 0:04:34]} Rfc8 {[%emt 0:09:05]} 17. Nc3 {[%emt 0:06:33]} Bf8 {[%emt 0:03:05]} 18. Rac1 {[%emt 0:03:42]} g5 {[%emt 0:03:22]} 19. Be3 {[%emt 0:01:25]} Nf6 {[%emt 0:01:31]} 20. a3 {[%emt 0:02:46]} Bd3 {[%emt 0:03:31]} 21. Qd1 {[%emt 0:04:39]} Rab8 {[%emt 0:02:45] [#]} (21... Bg6 $11 {keeps the balance.}) 22. h4 $1 $16 {[%emt 0:01:53]} gxh4 {[%emt 0:01:24]} 23. Bf4 {[%emt 0:02:10]} hxg3 $1 {[%emt 0:03:34]} 24. Bxb8 {[%emt 0:07:03]} ({White should try} 24. Bxg3 $16 Ra8 25. Be5) 24... gxf2+ $11 {[%emt 0:00:06]} 25. Kxf2 {[%emt 0:00:05]} Rxb8 {[%emt 0:00:06]} 26. Bxc6 {[%emt 0:02:29]} Bg7 {[%emt 0:02:22] A strong pair of Bishops.} 27. Qf3 {[%emt 0:01:06]} Rd8 {[%emt 0:02:56]} 28. d5 {[%emt 0:01:19]} exd5 {[%emt 0:03:15]} 29. Nxd5 {[%emt 0:01:21]} Nxd5 {[%emt 0:02:05]} 30. Bxd5 {[%emt 0:00:04]} Qb5 $1 {[%emt 0:00:29]} 31. Bxf7+ {[%emt 0:02:43]} Kh8 {[%emt 0:00:21]} (31... Kh7 $1 $11) 32. Rcd1 $1 $14 {[%emt 0:02:12][%cal Od1d3] [#] And now Rxd3! would win.} Qxb2+ {[%emt 0:04:20]} 33. Kg1 {[%emt 0:00:19]} Bd4+ {[%emt 0:08:58]} 34. Kh1 {[%emt 0:00:02] Chess con chili.} Bh7 {[%emt 0:01:01][%mdl 8192]} (34... Qf2 $14 35. Qh5 Bg7) 35. Re2 $18 {[%emt 0:00:37] White is clearly winning.} Bc2 {[%emt 0:02:02]} 36. Qc6 {[%emt 0:02:58][%csl LRc2,LRh6]} Qxa3 {[%emt 0:01:33]} 37. Rxc2 {[%emt 0:01:06] Weighted Error Value: White=0.11 (very precise) /Black=0.19 (very precise) .  Loses game:     	---       	Black=1      Mistake:       	White=1     	Black=2      Inaccurate:     	White=1     	Black=2      OK:         	White=7     	Black=6      Best:        	White=3     	Black=1      Strong:       	White=2     	Black=2} 1-0

[Event "Chinese League Division-A 2024"]
[Site "Fuling Chongqing"]
[Date "2024.07.01"]
[Round "5.24"]
[White "Du, Yuxin"]
[Black "Huang, Qian"]
[Result "1-0"]
[ECO "B30"]
[WhiteElo "1960"]
[BlackElo "2396"]
[Annotator "RC"]
[PlyCount "111"]
[EventDate "2024.06.28"]
[EventType "team-tourn"]
[EventCountry "CHN"]
[SourceTitle "playchess.com"]
[Source "ChessBase"]
[SourceQuality "1"]
[TimeControl "40/5400+30:1800+30"]

1. e4 {[%emt 0:00:03]} c5 {[%emt 0:03:06]} 2. Nf3 {[%emt 0:00:09]} Nc6 {[%emt 0:00:08]} 3. Bb5 {[%emt 0:00:56]} e6 {[%emt 0:01:21]} 4. Bxc6 {[%emt 0:08:41]} bxc6 {[%emt 0:00:29]} 5. O-O {[%emt 0:00:13]} Ne7 {[%emt 0:06:54]} 6. Re1 {[%emt 0:09:28]} Ng6 {[%emt 0:01:59]} 7. e5 {[%emt 0:04:45]} f6 {[%emt 0:04:07]} 8. d3 {[%emt 0:21:41]} Qc7 {[%emt 0:06:31]} 9. h4 {[%emt 0:15:46]} Be7 {[%emt 0:07:20]} 10. Nc3 {[%emt 0:05:57]} Nxe5 {[%emt 0:19:00]} 11. Nxe5 {[%emt 0:00:58]} fxe5 {[%emt 0:00:50]} 12. Qh5+ {[%emt 0:00:09]} g6 {[%emt 0:00:57]} 13. Qxe5 {[%emt 0:02:37]} Qxe5 {[%emt 0:00:10]} 14. Rxe5 {[%emt 0:00:06]} Bxh4 {[%emt 0:05:38]} 15. Rxc5 {[%emt 0:00:33]} Be7 {[%emt 0:00:25]} 16. Ra5 {[%emt 0:01:39]} Bd8 {[%emt 0:08:24]} 17. Ra4 {[%emt 0:01:07]} d6 {[%emt 0:09:00]} 18. Be3 {[%emt 0:03:07]} a5 {[%emt 0:05:09]} 19. Ne4 {[%emt 0:04:55]} Bc7 {[%emt 0:03:11]} 20. b4 {[%emt 0:04:25]} Ba6 {[%emt 0:15:16]} 21. bxa5 {[%emt 0:00:41]} Kd7 {[%emt 0:00:32]} 22. c4 {[%emt 0:06:28]} c5 {[%emt 0:00:30]} 23. Rb1 {[%emt 0:01:09]} Kc6 {[%emt 0:00:30]} 24. Bd2 {[%emt 0:02:52]} h6 {[%emt 0:00:30]} 25. Ra3 {[%emt 0:01:09]} Bc8 {[%emt 0:00:30]} 26. Rab3 {[%emt 0:01:17]} g5 {[%emt 0:00:29]} 27. Bc3 {[%emt 0:02:26]} Rf8 {[%emt 0:00:05]} 28. Bg7 {[%emt 0:00:19]} Rf7 {[%emt 0:00:53]} 29. Bxh6 {[%emt 0:00:19]} Rxa5 {[%emt 0:00:15]} 30. Bxg5 {[%emt 0:00:52]} Rxa2 {[%emt 0:00:41]} 31. Be3 {[%emt 0:00:30]} Bd7 {[%emt 0:00:38]} 32. R3b2 {[%emt 0:00:33]} Rxb2 {[%emt 0:00:13]} 33. Rxb2 {[%emt 0:00:04]} Rf8 {[%emt 0:00:37]} 34. Ra2 {[%emt 0:00:35]} Bb6 {[%emt 0:00:39]} 35. g4 {[%emt 0:00:31]} d5 {[%emt 0:00:18]} 36. Ng3 {[%emt 0:00:51]} e5 {[%emt 0:00:38]} 37. cxd5+ {[%emt 0:00:26]} Kxd5 {[%emt 0:00:02]} 38. g5 {[%emt 0:00:36]} Kc6 {[%emt 0:01:01]} 39. Ne4 {[%emt 0:00:24]} Bf5 {[%emt 0:00:05]} 40. Rc2 {[%emt 0:00:00]} Bxe4 {[%emt 0:00:00]} 41. dxe4 {[%emt 0:00:43]} Kb5 {[%emt 0:03:49]} 42. Rd2 {[%emt 0:03:08]} Kc6 {[%emt 0:02:00]} 43. Rc2 {[%emt 0:04:20]} Kb5 {[%emt 0:02:40]} 44. Kg2 {[%emt 0:00:34]} Rc8 {[%emt 0:00:27]} 45. Rb2+ {[%emt 0:01:16]} Kc6 {[%emt 0:00:22]} 46. Kg3 {[%emt 0:01:37]} Bd8 {[%emt 0:00:30]} 47. Kg4 {[%emt 0:05:01]} c4 {[%emt 0:00:52]} 48. Kf5 {[%emt 0:03:43]} c3 {[%emt 0:00:25]} 49. Rc2 {[%emt 0:00:50]} Kd6 {[%emt 0:00:02]} 50. Bc1 {[%emt 0:01:44]} Rc6 {[%emt 0:04:35]} 51. f3 {[%emt 0:09:05]} Bc7 {[%emt 0:00:56]} 52. Ba3+ {[%emt 0:01:09]} Kd7 {[%emt 0:00:03]} 53. Bb4 {[%emt 0:01:07]} Rc4 {[%emt 0:00:44]} 54. Bxc3 {[%emt 0:01:05]} Ke8 {[%emt 0:00:03]} 55. Rc1 {[%emt 0:00:21]} Bd6 {[%emt 0:01:54]} 56. Bb2 {[%emt 0:00:11]} 1-0

[Event "Chinese League Division-A 2024"]
[Site "Fuling Chongqing"]
[Date "2024.07.01"]
[Round "5.25"]
[White "Wang, Chuqiao"]
[Black "Feng, Eunice"]
[Result "1-0"]
[ECO "D12"]
[WhiteElo "2278"]
[BlackElo "1936"]
[Annotator "TA"]
[PlyCount "84"]
[EventDate "2024.06.28"]
[EventType "team-tourn"]
[EventCountry "CHN"]
[SourceTitle "playchess.com"]
[Source "ChessBase"]
[SourceQuality "1"]
[TimeControl "40/5400+30:1800+30"]

{[%evp 15,84,23,28,34,28,15,6,0,20,-6,16,-10,16,4,27,20,8,8,12,12,35,27,28,0,0,0,75,76,87,77,102,83,206,229,1155,1146,978,240,247,245,229,214,286,288,399,400,429,430,398,400,476,467,433,442,785,798,1166,1059,1055,1020,1035,953,1482,1324,2002,1968,29976,29976,29977,29977,29964]} 1. d4 {[%emt 0:00:03]} d5 {[%emt 0:00:06]} 2. c4 {[%emt 0:00:09]} c6 {[%emt 0:00:06]} 3. Nf3 {[%emt 0:00:11]} Nf6 {[%emt 0:00:07]} 4. e3 {[%emt 0:00:07]} Bf5 {[%emt 0:00:10][%cal Bc8f5,Bf5e4,Be4g6][%mdl 32]} 5. Nc3 {[%emt 0:00:04]} e6 {[%emt 0:00:11]} 6. Nh4 {[%emt 0:00:04]} Be4 {[%emt 0:00:08]} 7. f3 {[%emt 0:00:13]} Bg6 {[%emt 0:00:07]} 8. Qb3 {[%emt 0:00:20]} Qc7 {[%emt 0:00:07]} 9. Bd2 {[%emt 0:00:21]} Be7 {[%emt 0:00:09]} 10. O-O-O {[%emt 0:00:53]} dxc4 {[%emt 0:01:01]} 11. Qxc4 {[%emt 0:02:15] The position is equal.} a6 {[%emt 0:00:18]} 12. Nxg6 {[%emt 0:03:22]} hxg6 {[%emt 0:00:09]} 13. g4 {[%emt 0:00:52]} b5 {[%emt 0:01:31]} 14. Qe2 {[%emt 0:00:19]} c5 {[%emt 0:08:21]} 15. dxc5 {[%emt 0:02:25]} Qxc5 {[%emt 0:00:33] ...b4 is the strong threat.} 16. Kb1 {[%emt 0:02:22]} Nbd7 {[%emt 0:05:15]} 17. Rc1 {[%emt 0:20:48]} O-O {[%emt 0:06:57]} 18. h4 {[%emt 0:05:15]} Ne5 {[%emt 0:19:44]} 19. Ne4 {[%emt 0:02:58]} Qd5 {[%emt 0:01:50]} 20. Nxf6+ {[%emt 0:04:09]} Bxf6 {[%emt 0:01:49]} (20... gxf6 $11 {keeps the balance.} 21. Bg2 Rad8) 21. e4 $16 {[%emt 0:04:13]} Qd7 {[%emt 0:04:59]} 22. g5 $1 {[%emt 0:06:15]} Be7 {[%emt 0:00:25] [#]} 23. Bc3 $1 {[%emt 0:01:21]} Nc4 {[%emt 0:00:37] [#] A mistake that costs the game.} (23... Nc6 $16 {keeps fighting.}) 24. Qh2 $1 $18 {[%emt 0:02:36]} f5 $2 {[%emt 0:10:20]} (24... b4) 25. Bxc4 {[%emt 0:02:49]} bxc4 {[%emt 0:00:13]} 26. Rcd1 $2 {[%emt 0:00:41]} (26. h5 Qe8 27. Qe5 (27. hxg6 Qxg6 28. exf5 exf5 $18)) 26... Qe8 {[%emt 0:08:08]} 27. Qe5 {[%emt 0:06:36][%csl LRe6,LRg7]} Qf7 {[%emt 0:00:11]} 28. Rhe1 $40 {[%emt 0:05:09][%mdl 128] Black is in trouble.} Rad8 {[%emt 0:07:19]} 29. Rxd8 {[%emt 0:01:31]} Bxd8 {[%emt 0:00:16]} 30. exf5 {[%emt 0:00:36]} Qxf5+ {[%emt 0:08:50]} 31. Qxf5 {[%emt 0:00:07]} Rxf5 {[%emt 0:01:50]} 32. Rxe6 {[%emt 0:00:07]} Ba5 {[%emt 0:01:51]} 33. Bxa5 {[%emt 0:01:19]} ({Less strong is} 33. Rxa6 Bxc3 34. bxc3 Rxf3 $18) 33... Rxa5 {[%emt 0:00:08]} 34. Rxg6 {[%emt 0:03:25][%mdl 4096] Endgame. KR-KR} Rf5 {[%emt 0:03:16]} (34... Kh8 $142 35. Rc6 Kh7) 35. Rxa6 {[%emt 0:00:00]} Rxf3 {[%emt 0:00:06]} 36. g6 {[%emt 0:00:00] Intending Ra8+ and mate.} Kf8 {[%emt 0:01:30]} 37. Ra8+ {[%emt 0:00:00]} Ke7 {[%emt 0:00:19]} 38. Ra7+ {[%emt 0:00:00]} Ke6 {[%emt 0:00:17]} 39. Rxg7 {[%emt 0:00:00]} Rh3 {[%emt 0:00:17]} 40. Rh7 {[%emt 0:00:00] aiming for h5.} c3 {[%emt 0:00:00]} 41. bxc3 {[%emt 0:00:00]} Rxc3 {[%emt 0:01:28]} 42. h5 {[%emt 0:00:00]} Kd5 {[%emt 0:00:18] Weighted Error Value: White=0.18 (very precise) /Black=0.56.  Mistake:       	---       	Black=4      Inaccurate:     	White=3     	Black=4      OK:         	White=8     	Black=8      Best:        	White=4     	---        Strong:       	White=3     	---} 1-0